Cogmind - Beta 14 @@@ ROGUE MODE // 2024.08.17 @ 15:37:24 Player: satan5 Result: Destroyed by G-47 Trooper with Particle Gun Performance ------------- Evolutions (0) 0 Regions Visited (1) 200 Robots Destroyed (17) 85 Value Destroyed (299) 299 Prototype IDs (2) 40 Alien Tech Used (0) 0 Bonus (0) 0 TOTAL SCORE: 624 Bonus ------- None Cogmind --------- Core Integrity 0/250 Matter 284/300 Energy 250/250 System Corruption 0% Temperature Cool (9) Movement Walking (190) Ox1 Location -10/Materials Parts ------- > --- POWER (1) -------- Ion Engine > --- PROPULSION (2) --- Aluminum Leg > --- UTILITY (2) ------ Small Storage Unit Hacking Suite > --- WEAPON (2) ------- Mining Claw > --- INVENTORY (8) ---- Light Ion Engine Aluminum Leg Aluminum Leg Signal Interpreter Small Laser Light Assault Rifle Peak State ------------ > --- POWER ------------ Light Ion Engine > --- PROPULSION ------- Aluminum Leg Aluminum Leg > --- UTILITY ---------- Small Storage Unit Hacking Suite > --- WEAPON ----------- Small Laser Assault Rifle > --- INVENTORY -------- Light Ion Engine Small Laser [Rating: 9] Favorites ----------- Power Light Ion Engine Engine Light Ion Engine Propulsion Aluminum Leg Leg Aluminum Leg Utility Small Storage Unit Storage Small Storage Unit Hackware Hacking Suite Weapon Small Laser Energy Gun Small Laser Ballistic Gun Assault Rifle Slashing Weapon Mining Claw Build | -11 -10 ------- Run | Yrd Mat Slots Evolved . | . . Power . | . . Propulsion . | . . Utility . | . . Weapon . | . . Parts Attached 15 | 7 8 Power 3 | 1 2 Engine 3 | 1 2 Core . | . . Reactor . | . . Propulsion 4 | 2 2 Treads . | . . Leg 4 | 2 2 Wheel . | . . Hover . | . . Flight . | . . Utility 2 | 1 1 Device . | . . Storage 1 | 1 . Processor . | . . Hackware 1 | . 1 Protection . | . . Artifact . | . . Weapon 6 | 3 3 Energy Gun 2 | 2 . Energy Cannon . | . . Ballistic Gun 2 | 1 1 Ballistic Cannon . | . . Launcher . | . . Special Weapon . | . . Impact Weapon . | . . Slashing Weapon 2 | . 2 Piercing Weapon . | . . Special Melee Weapon . | . . Unidentified Prototypes . | . . Parts Lost 4 | . 4 Power 1 | . 1 Propulsion 1 | . 1 Utility . | . . Weapon 2 | . 2 Highest Loss Streak 3 | . 3 To Critical Strikes . | . . Average Slot Usage (%) 98 | . 98 Engine 13 | . 13 Leg 27 | . 27 Storage 14 | . 14 Hackware 13 | . 13 Energy Gun 13 | . 13 Ballistic Gun 12 | . 12 Slashing Weapon 1 | . 1 Peak Build Rating 9 | 6 9 Average Rating 8 | 4 8 On Entrance 3 | . 6 Naked Turns . | . . Heaviest Build 13 | 11 13 Greatest Support 20 | 20 20 Greatest Overweight (x) 1 | 1 . Average Overweight (x) . | . . Largest Inventory Capacity 8 | 8 8 Average Capacity 7 | 7 8 Most Carried 8 | 7 8 Average Carried 6 | 2 6 Final Capacity 8 | 8 8 Final Carried 6 | 2 6 Class Distribution -------------------- 59% | Mutant 40% | Scavenger-Mutant Dominant Class ---------------- Mutant | -10/Materials Resources | -11 -10 ----------- Run | Yrd Mat Matter Collected 517 | 276 241 Remotely . | . . Salvage Created 449 | 23 426 Parts 42 | 2 40 Haulers Intercepted 1 | . 1 Recyclers Shooed 1 | . 1 Parts Field Recycled . | . . Retrieved Matter . | . . Parts Self-Destructed . | . . Prevented . | . . Kills | -11 -10 ------- Run | Yrd Mat Combat Hostiles Destroyed 8 | . 8 Guns 8 | . 8 Classes Destroyed 7 | 1 6 Worker 3 | . 3 Tunneler 1 | 1 . Hauler 1 | . 1 Operator 1 | . 1 Watcher 3 | . 3 Swarmer 3 | . 3 Grunt 5 | . 5 Best Kill Streak 3 | 1 3 Combat Bots Only 2 | . 2 Max Kills in Single Turn 1 | 1 1 Gunslinging . | . . Exploded . | . . Melee . | . . Uniques/NPCs Destroyed . | . . Combat | -11 -10 -------- Run | Yrd Mat Hostile Shots Fired 73 | . 73 Missed 15 | . 15 Damage Taken 782 | . 782 Core 263 | . 263 Absorbed by Shields . | . . Core Remaining (%) 100 | 100 . Volleys Fired 66 | 4 62 Largest 2 | 2 2 Hottest 60 | 60 60 Shots Fired 128 | 8 120 Gun 128 | 8 120 Cannon . | . . Launcher . | . . Special . | . . Kinetic 66 | 4 62 Thermal 62 | 4 58 Explosive . | . . Electromagnetic . | . . Robot Hit Streak 7 | 2 7 Robot Miss Streak 6 | 3 6 Penetration Max . | . . Secondary Targets . | . . Shots Hit Robots 75 | 3 72 Core Hits 30 | 2 28 Critical Kills . | . . Critical Parts Destroyed 1 | . 1 Critical Strikes 1 | . 1 Destroy 1 | . 1 Melee Attacks 11 | . 11 Impact . | . . Slashing 11 | . 11 Piercing . | . . Sneak Attacks 2 | . 2 Combat Hostiles . | . . Follow-up Attacks . | . . Damage Inflicted 1066 | 47 1019 Guns 821 | 47 774 Cannons . | . . Explosions . | . . Melee 245 | . 245 Ramming . | . . Kinetic 388 | 26 362 Thermal 433 | 21 412 Explosive . | . . Electromagnetic . | . . Impact . | . . Slashing 245 | . 245 Piercing . | . . Highest Corruption . | . . Average Corruption . | . . Corruption Purged . | . . Corruption Blocked . | . . Overload Shots . | . . Overflow Damage 31 | . 31 Projectiles . | . . Explosions . | . . Melee 31 | . 31 Knockbacks . | . . Impact . | . . Kinetic . | . . Secondary . | . . Self-Inflicted Damage . | . . Shots . | . . Rammed . | . . Targets Rammed . | . . Kicked . | . . Crushed . | . . Highest Temperature 102 | . 102 Average Temperature 37 | . 37 Received Heat Transfer 396 | . 396 Siege Activations . | . . Robots Corrupted . | . . Combat Hostiles . | . . Parts Fried . | . . Impact Corruptions . | . . Robots Melted . | . . Combat Hostiles . | . . Parts Melted . | . . Heat Transferred 975 | 50 925 Parts Sabotaged . | . . Parts Stolen . | . . Parts Stripped . | . . Power Chain Reactions . | . . Alert | -11 -10 ------- Run | Yrd Mat Peak Influence 220 | 5 220 Initial 3 | . 3 Average 104 | 2 112 Maximum Alert Level 1 | . 1 Low Security (%) 86 | 100 85 Level 1 13 | . 14 Level 2 . | . . Level 3 . | . . Level 4 . | . . Level 5 . | . . High Security . | . . Max Security . | . . Squads Dispatched 2 | . 2 Investigation . | . . Extermination . | . . Reinforcement 2 | . 2 Assault . | . . Garrison . | . . Intercept . | . . Searches Triggered . | . . Construction Impeded . | . . Haulers Reinforced . | . . Active Scanning Responses . | . . Cargo Convoy Interrupts . | . . Stealth | -11 -10 --------- Run | Yrd Mat Distress Signals 1 | . 1 Communications Jammed . | . . Distress Signals . | . . Times Spotted 21 | . 21 Peak Tracking Total 5 | . 5 Tactical Retreats 1 | . 1 Traps | -11 -10 ------- Run | Yrd Mat Traps Triggered 1 | . 1 Indirectly . | . . Trap Hack Attempts . | . . Triggered . | . . Disarmed . | . . Reprogrammed . | . . Reused . | . . Traps Extracted . | . . Installed . | . . Triggered . | . . Machines | -11 -10 ---------- Run | Yrd Mat Machines Disabled 1 | . 1 Max in Single Turn 1 | . 1 Machines Repaired . | . . Machines Dismantled . | . . Machines Sabotaged . | . . Overloaded Fab Kills . | . . Hacking | -11 -10 --------- Run | Yrd Mat Machines Accessed 5 | . 5 Terminals 5 | . 5 Fabricators . | . . Repair Stations . | . . Recycling Units . | . . Scanalyzers . | . . Garrison Access . | . . Total Hacks 14 | . 14 Successful 8 | . 8 Failed 6 | . 6 Catastrophic . | . . Database Lockouts . | . . Manual 11 | . 11 Terminals 14 | . 14 Fabricators . | . . Repair Stations . | . . Recycling Units . | . . Scanalyzers . | . . Garrison Access . | . . Terminal Hacks 5 | . 5 Prototype ID Bank 1 | . 1 Branch Access Points 1 | . 1 Unreport Threat 1 | . 1 Hauler Manifests 1 | . 1 Zone Layout 1 | . 1 Fabricator Hacks . | . . Repair Station Hacks . | . . Recycling Unit Hacks . | . . Scanalyzer . | . . Garrison Access Hacks . | . . Unauthorized Hacks 3 | . 3 Terminals 3 | . 3 Botnet 2 | . 2 Operators 1 | . 1 Fabricators . | . . Repair Stations . | . . Recycling Units . | . . Scanalyzers . | . . Garrison Access . | . . Data Cores Recovered . | . . Used . | . . Hacking Detections 5 | . 5 Full Trace Events . | . . Feedback Events . | . . Feedback Blocked . | . . Robot Schematics Acquired . | . . Robots Built . | . . Authchips . | . . Time . | . . Total Robot Build Rating . | . . Part Schematics Acquired . | . . Parts Built . | . . Authchips . | . . Time . | . . Total Part Build Rating . | . . Parts Repaired . | . . Time . | . . Parts Recycled . | . . Recycled Matter . | . . Retrieved Matter . | . . Retrieved Components . | . . Parts Scanalyzed . | . . Part Schematics Acquired . | . . Parts Damaged . | . . Bothacking | -11 -10 ------------ Run | Yrd Mat Used RIF Installer . | . . Robots Hacked . | . . Non-combat . | . . Combat . | . . Robot Hacks Applied . | . . Relay Couplers Released . | . . Fabnet Peak Effective % . | . . Robots Rewired . | . . Allies Hacked . | . . Hacks Repelled . | . . Allies | -11 -10 -------- Run | Yrd Mat Total Allies . | . . Largest Group . | . . Highest-Rated Group . | . . Highest-Rated Ally . | . . Total Orders . | . . Ally Attacks . | . . Total Damage . | . . Kills . | . . Allies Corrupted . | . . Allies Melted . | . . Intel | -11 -10 ------- Run | Yrd Mat Robot Analysis Total . | . . Derelict Logs Recovered . | . . Drone Launches . | . . Drone Recoveries . | . . Exploration | -11 -10 ------------- Run | Yrd Mat Turns Passed 929 | 63 866 Spaces Moved 524 | 39 485 Core 18 | 18 . Treads . | . . Legs 506 | 21 485 Wheels . | . . Hover . | . . Flight . | . . Fastest Speed 50 | 50 120 Average Speed 117 | 91 120 Slowest Speed 120 | 120 120 Overloaded Moves . | . . Propulsion Burnouts . | . . Robots Hopped . | . . Cave-ins Triggered . | . . Exploration Rate (%) 46 | 3 89 Regions Visited 1 Branch Regions . Pre-discovered Areas . | . . Known Exits Taken . | . . Unknown Exits Taken 1 | 1 . Scrap Searched . | . . Spaces Dug . | . . Terrain Destroyed . | . . Melee . | . . Projectile . | . . AOE . | . . Terrain Rammed . | . . Walls Destroyed . | . . Machines Disabled . | . . Actions | -11 -10 --------- Run | Yrd Mat Total 685 | 57 628 Wait 50 | 1 49 Move 523 | 38 485 Hop . | . . Pick Up 16 | 7 9 Fast Attach 1 | 1 . Attach 8 | 5 3 Detach . | . . Swap 6 | 1 5 Drop 4 | . 4 Fire 66 | 4 62 Melee 11 | . 11 Ram . | . . Kick . | . . Crush . | . . Escape Stasis . | . . Rewire . | . . Trap . | . . Miscellaneous . | . . Route ------- -11/Scrapyard -10/Materials (discovered 4 exits: [*Mat x3] / *Min) History --------- Turn | Location | Event 15 | -11/Scrapyard | Discovered new exit (range 16) 64 | -11/Scrapyard | Entered Materials 131 | -10/Materials | Discovered new exit (range 16) 317 | -10/Materials | Build established: Mutant 443 | -10/Materials | Discovered new exit (range 8) 530 | -10/Materials | Core integrity fell below 50% 569 | -10/Materials | Discovered new exit (range 16) 759 | -10/Materials | Identified exit to Mines 798 | -10/Materials | Discovered new exit (range 5) 915 | -10/Materials | Core integrity fell below 20% 930 | -10/Materials | Destroyed by G-47 Trooper with Particle Gun Last Messages --------------- Found 1 branch access point: (67,61) Mines Map updated. >>Alert(Purge) Purged threat record, alert level lowered. 00771_ R-06 Scavenger collects Lgt. Ion Engine. 00798_ EXIT=FOUND 00801_ T-07 Excavator is excavating. 00816_ Connecting with Terminal... >>Trojan(Operators) Trojan loaded successfully. Testing... Operator tracking enabled and active. 00841_ Acquired 4 matter. 00899_ Sml. Laser destroyed. 00901_ Assault Rifle destroyed. 00904_ G-34 Mercenary destroyed. 00905_ M-13 Machinist repairs O-16 Technician. 00923_ R-06 Scavenger collects Aluminum Leg. 00928_ Aluminum Leg destroyed. Map ----- +----------------------------------------------------+ | | | | | | | | | | | | | | | | | | | | | | | ?????????????????????????????????????????????????? | | ?????????????????????????????????????????????????? | | ?????????????????????????????????????????????????? | | ?????????????????????????????????????????????????# | | ?????????????????????????????????????????????????# | | ?????????????????????????????????????????????????# | | ?????????????????????????????????????????????????# | | ?????????????????????????????????????????????????# | | ?????????????????????????????????????????????????# | | ???????????????????????#####?????????????????????# | | ???????????????????????# #???###########???????# | | ???????????#+########### < #???# """T""" #???????# | | ???????? #???# #???????# | | ???????? g#???# """ """ #??###### | | ???????????????#########%@m#???# """ """ #??# | | ????????????????#####??# #???# """ """ #??# | | ????????????????# ?# o #???# #??# | | ????????????????# ?#r #???# #??# | | ????????????????# # #???# #??# | | ????????????????# """ # #???#####+#####??#% | | ????????????????# """ + ####### #????# | | ????????????????# """ # ######%[ | | ????????????????# # % =%/^ = | | ????????????????######?# ########### | | ????????????????# ?# ####### #?????????? | | ????????????????#= """ # #############?????????? | | ????????????????# """ # %# #?????????????? | | #######?????????# """ + + #?????????????? | | # ########??#! """ # # #??????#####??? | | # #??# # ######+##??????#"""#??? | | # ########### ##???# #??######"T"#### | | # | % ##### ##?# | | # ##### ########### % ### | | ## ######+#?????????# | | ?# # #?????????# ######+###### # | | ?# # """ #?????????# #### #??? ??# | | ?# + """ #?????????#######??# #?# """ #?#### | | ?# # """ #??????????????????# #?# """ #????? | | ?# # !#??????????????????# #?# """ #????? | +----------------------------------------------------+ Best States ------------- Heat Dissipation 25 Energy Generation 10 Energy Capacity 250 Matter Stores 300 Matter Capacity 300 Sight Range 16 Terrain Scan Density 10 Evasion (%) 55 Offensive Hacking 10 Item Schematics ----------------- None Robot Schematics ------------------ None Fabricated ------------ Nothing Alien Tech Used ----------------- None Achievements -------------- None Challenges ------------ None Game ------ Seed DeliveryWardroneMallet Manual? 0 Play Time 00:08:51 Cumulative 229.5 hours Start 2024.08.17 @ 15:28:23 End 2024.08.17 @ 15:37:24 Sessions 1 Manual Loads 0 Difficulty Rogue Special Mode None Game No. 93 Rogue 79 Adventurer 14 Explorer 0 Win Type - Total 16 Types 13/0/1/1/0/0/0/0/1 Lore% 46 Gallery% 74 Achievement% 66 Wizard Run 0 Options --------- Layout 1 ASCII 0 Keyboard 0 Movement Mouse Keybinds 0 Fullscreen 1 Font 20/SmallcapsGlow Map View 50x35 Zoom Use 0% Tactical HUD 1 Map Filters NONE Filters NONE Steam 1 RUN: beae62d0-c669-4819-b70f-ab1bf36ee9d9